Cogmind - Beta 11.1 @@@ ROGUE MODE // 2022.07.13 @ 20:07:22 Player: Lazarus777 Result: Self-destructed Performance ------------- Evolutions (2) 1000 Regions Visited (5) 1000 Robots Destroyed (44) 220 Value Destroyed (926) 926 Prototype IDs (1) 20 Alien Tech Used (0) 0 Bonus (132) 132 TOTAL SCORE: 3298 Bonus ------- Follower Combat Kills 132 Cogmind --------- Core Integrity 173/550 Matter 226/300 Energy 15/100 System Corruption 35% Temperature Cool (0) Movement Walking (1730) Ox23 Location -8/Materials Parts ------- > --- POWER (1) -------- (None) > --- PROPULSION (2) --- Aluminum Leg > --- UTILITY (6) ------ High-capacity Storage Unit Humpback Advanced Weight Redist. System Signal Interpreter > --- WEAPON (2) ------- (None) > --- INVENTORY (35) --- Ion Engine Recalibrator Assault Cannon Peak State ------------ > --- POWER ------------ Reinforced Ion Engine > --- PROPULSION ------- Wheel Wheel > --- UTILITY ---------- Humpback Experimental Sensor Array Signal Interpreter Improved Terrain Scanner Seismic Detector > --- WEAPON ----------- Light EM Pulse Cannon Hammer > --- INVENTORY -------- Ion Engine Improved Treads Aluminum Leg Aluminum Leg Wheel Wheel Wheel Armored Wheel Improved Heat Sink Improved Heat Sink High-capacity Storage Unit Humpback High-capacity Battery Advanced Weight Redist. System Advanced Weight Redist. System Improved Terrain Scanner Targeting Computer Targeting Computer Targeting Computer Targeting Computer Light Armor Plating Hardened Light Armor Plating Recalibrator Beam Rifle Beam Cannon Beam Cannon Assault Cannon EMP Blaster Grenade Launcher Heavy Explosive Trap Heavy Explosive Trap [Rating: 28] Favorites ----------- Power Reinforced Ion Engine Engine Reinforced Ion Engine Power Core Light Nuclear Core Propulsion Wheel Leg Aluminum Leg Wheel Wheel Utility Humpback Device Seismic Detector Storage Humpback Processor Signal Interpreter Protection Hardened Light Armor Plating Weapon Hammer Energy Gun Particle Gun Energy Cannon Light EM Pulse Cannon Ballistic Gun Light Assault Rifle Ballistic Cannon Assault Cannon Launcher EMP Blaster Special Weapon Mining Laser Impact Weapon Hammer Build | -11 -10 -10 -10 -9 -8 ------- Run | Scr Mat Min Exi Min Mat Slots Evolved 4 | . . . . . 4 Power . | . . . . . . Propulsion . | . . . . . . Utility 4 | . . . . . 4 Weapon . | . . . . . . Parts Attached 48 | 4 8 5 2 13 16 Power 5 | 1 . 1 . 3 . Engine 2 | 1 . . . 1 . Core 3 | . . 1 . 2 . Reactor . | . . . . . . Propulsion 13 | 2 2 1 . 6 2 Treads . | . . . . . . Leg 2 | . . . . . 2 Wheel 11 | 2 2 1 . 6 . Hover . | . . . . . . Flight . | . . . . . . Utility 13 | . 3 . 2 . 8 Device 7 | . 3 . . . 4 Storage 4 | . . . 2 . 2 Processor 1 | . . . . . 1 Hackware . | . . . . . . Protection 1 | . . . . . 1 Artifact . | . . . . . . Weapon 17 | 1 3 3 . 4 6 Energy Gun 3 | 1 1 . . 1 . Energy Cannon 2 | . . . . 1 1 Ballistic Gun 3 | . 2 1 . . . Ballistic Cannon 1 | . . . . . 1 Launcher 6 | . . 1 . 1 4 Special Weapon 1 | . . 1 . . . Impact Weapon 1 | . . . . 1 . Slashing Weapon . | . . . . . . Piercing Weapon . | . . . . . . Special Melee Weapon . | . . . . . . Unidentified Prototypes 1 | . . . . . 1 Corrupted Parts 5 | . . . . . 5 System Corruption 35 | . . . . . 35 Parts Lost 24 | . 2 3 . 3 16 Power 4 | . . 1 . 2 1 Propulsion 3 | . 1 . . . 2 Utility 9 | . . 1 . . 8 Weapon 6 | . 1 1 . 1 3 Highest Loss Streak 13 | . 2 3 . 2 13 To Critical Strikes 2 | . . . . . 2 Average Slot Usage (%) 87 | . 83 98 91 81 88 Engine 8 | . 14 12 . 7 8 Core 1 | . . 1 14 6 . Wheel 20 | . 26 28 28 27 17 Device 19 | . 14 26 9 . 25 Storage 9 | . . . 10 14 9 Processor 5 | . . . . . 9 Energy Gun 3 | . 11 14 14 10 . Energy Cannon 5 | . . . . . 8 Ballistic Gun 2 | . 16 13 14 4 . Impact Weapon 7 | . . . . 6 8 Naked Turns . | . . . . . . Heaviest Build 260 | 4 9 10 209 215 260 Greatest Support 29 | 20 20 20 20 26 29 Greatest Overweight (x) 84 | . . . 10 21 84 Average Overweight (x) 5 | . . . 2 10 10 Largest Inventory Capacity 35 | 5 5 5 35 35 35 Average Capacity 31 | 5 5 5 21 35 34 Most Carried 32 | 3 5 5 10 27 32 Average Carried 19 | . 3 4 6 18 22 Final Capacity 35 | 5 5 5 35 35 35 Final Carried 25 | 3 5 5 9 25 3 Class Distribution -------------------- 62% | Hauler-Assassin 24% | Hauler-Mutant 10% | Scavenger-Mutant Dominant Class ---------------- Scavenger-Mutant | -10/Materials Scavenger-Mutant | -10/Mines Scavenger-Mutant | -10/Exiles Hauler-Mutant | -9/Mines Hauler-Assassin | -8/Materials Resources | -11 -10 -10 -10 -9 -8 ----------- Run | Scr Mat Min Exi Min Mat Matter Collected 952 | 240 86 62 . 341 223 Remotely . | . . . . . . Salvage Created 1462 | 10 111 33 . 660 648 Parts 88 | 3 9 4 . 46 26 Haulers Intercepted . | . . . . . . Recyclers Shooed 5 | . . 2 . . 3 Parts Field Recycled . | . . . . . . Retrieved Matter . | . . . . . . Parts Self-Destructed . | . . . . . . Prevented . | . . . . . . Kills | -11 -10 -10 -10 -9 -8 ------- Run | Scr Mat Min Exi Min Mat Combat Hostiles Destroyed 24 | . 4 . . 13 7 Melee 1 | . . . . 1 . Guns 13 | . 4 . . 9 . Cannons 4 | . . . . 2 2 AOE 3 | . . . . . 3 Classes Destroyed 9 | 1 2 1 . 2 3 Worker 6 | 1 1 1 . 3 . Builder 3 | . . . . . 3 Tunneler 6 | . . 1 . 4 1 Recycler 4 | . . . . 1 3 Mechanic 1 | . . . . . 1 Swarmer 6 | . 3 . . 3 . Grunt 15 | . 1 . . 8 6 Brawler 2 | . . . . 2 . Duelist 1 | . . . . . 1 Best Kill Streak 8 | 1 2 1 . 4 8 Combat Bots Only 3 | . 2 . . 2 3 Max Kills in Single Turn 2 | 1 1 1 . 1 2 Gunslinging . | . . . . . . Exploded 1 | . . . . . 1 Melee 1 | . . . . 1 . Uniques/NPCs Destroyed . | . . . . . . Combat | -11 -10 -10 -10 -9 -8 -------- Run | Scr Mat Min Exi Min Mat Damage Taken 2527 | . 251 249 . 686 1341 Core 587 | . 55 18 . 137 377 Absorbed by Shields . | . . . . . . Core Remaining (%) 58 | 100 . . . 16 . Volleys Fired 163 | 1 24 29 . 65 44 Largest 2 | 1 2 2 . 1 1 Hottest 100 | 40 65 100 . 65 56 Shots Fired 178 | 1 41 31 . 61 44 Gun 122 | 1 41 27 . 53 . Cannon 39 | . . . . 8 31 Launcher 14 | . . 1 . . 13 Special 3 | . . 3 . . . Kinetic 36 | . 18 2 . . 16 Thermal 105 | 1 23 28 . 53 . Explosive 6 | . . 1 . . 5 Electromagnetic 31 | . . . . 8 23 Robot Hit Streak 7 | 1 6 5 . 7 6 Robot Miss Streak 3 | . 3 2 . 3 2 Penetration Max . | . . . . . . Secondary Targets . | . . . . . . Shots Hit Robots 127 | 1 26 18 . 47 35 Core Hits 61 | 1 9 5 . 25 21 Critical Kills 1 | . 1 . . . . Critical Parts Destroyed 3 | . . . . 1 2 Critical Strikes 7 | . 1 1 . 3 2 Burn 3 | . . 1 . 2 . Destroy 1 | . 1 . . . . Smash 3 | . . . . 1 2 Melee Attacks 13 | . . . . 7 6 Impact 13 | . . . . 7 6 Slashing . | . . . . . . Piercing . | . . . . . . Sneak Attacks 2 | . . . . 2 . Combat Hostiles . | . . . . . . Follow-up Attacks . | . . . . . . Damage Inflicted 2618 | 11 257 265 . 890 1195 Guns 1104 | 11 257 261 . 575 . Cannons 614 | . . . . 120 494 Explosions 597 | . . . . . 597 Melee 244 | . . . . 140 104 Ramming 59 | . . 4 . 55 . Kinetic 380 | . 103 14 . . 263 Thermal 987 | 11 154 247 . 575 . Explosive 351 | . . . . . 351 Electromagnetic 597 | . . . . 120 477 Impact 244 | . . . . 140 104 Slashing . | . . . . . . Piercing . | . . . . . . Highest Corruption 35 | . . 12 12 25 35 Average Corruption 17 | . . 12 12 17 29 Corruption Purged . | . . . . . . Corruption Blocked . | . . . . . . Effects 121 | . . 5 12 91 13 Message Errors 30 | . . 3 6 20 1 Matter Fused 28 | . . . 5 22 1 Heat Flow Errors 15 | . . 1 . 11 3 Energy Discharges 11 | . . . . 9 2 Parts Rejected 2 | . . . . 1 1 Data Loss (minor) 15 | . . 1 1 12 1 Data Loss (major) 8 | . . . . 6 2 Misfires 2 | . . . . 1 1 Alerts 3 | . . . . 3 . Misdirections 1 | . . . . 1 . Weapon Failures 6 | . . . . 5 1 Overload Shots . | . . . . . . Overflow Damage 143 | . . . . 65 78 Projectiles 1 | . . . . . 1 Explosions 42 | . . . . . 42 Melee 100 | . . . . 65 35 Knockbacks 3 | . . . . . 3 Impact 1 | . . . . . 1 Kinetic 2 | . . . . . 2 Secondary . | . . . . . . Self-Inflicted Damage 264 | . . 30 . 26 208 Shots 13 | . . 1 . . 12 Rammed 5 | . . 1 . 4 . Targets Rammed 5 | . . 1 . 4 . Kicked . | . . . . . . Crushed . | . . . . . . Highest Temperature 279 | . 112 232 . 279 213 Average Temperature 82 | . 42 57 . 93 69 Received Heat Transfer 930 | . 90 9 . 210 621 Effects 1 | . . . . 1 . Energy Bleed 1 | . . . . 1 . Siege Activations . | . . . . . . Robots Corrupted 2 | . . . . . 2 Combat Hostiles 2 | . . . . . 2 Parts Fried 7 | . . . . 1 6 Impact Corruptions 6 | . . . . 4 2 Robots Melted . | . . . . . . Combat Hostiles . | . . . . . . Parts Melted 2 | . . . . 2 . Heat Transferred 2569 | 25 361 666 . 1517 . Parts Sabotaged . | . . . . . . Parts Stolen . | . . . . . . Parts Stripped . | . . . . . . Power Chain Reactions . | . . . . . . Missiles Intercepted . | . . . . . . Alert | -11 -10 -10 -10 -9 -8 ------- Run | Scr Mat Min Exi Min Mat Peak Influence 241 | 5 136 77 . 95 241 Initial 52 | . 3 52 . . . Average 41 | 1 101 38 . 34 42 Maximum Alert Level 1 | . . . . . 1 Low Security (%) 99 | 100 100 100 . 100 99 Level 1 . | . . . . . . Level 2 . | . . . . . . Level 3 . | . . . . . . Level 4 . | . . . . . . Level 5 . | . . . . . . High Security . | . . . . . . Max Security . | . . . . . . Squads Dispatched 6 | . 3 . . . 3 Investigation 2 | . 2 . . . . Extermination . | . . . . . . Reinforcement 4 | . 1 . . . 3 Assault . | . . . . . . Garrison . | . . . . . . Intercept . | . . . . . . Searches Triggered . | . . . . . . Construction Impeded 1 | . . . . . 1 Haulers Reinforced . | . . . . . . Active Scanning Responses . | . . . . . . Cargo Convoy Interrupts . | . . . . . . Stealth | -11 -10 -10 -10 -9 -8 --------- Run | Scr Mat Min Exi Min Mat Distress Signals 3 | . . . . 1 2 Communications Jammed . | . . . . . . Distress Signals . | . . . . . . Times Spotted 39 | . 7 3 . 15 14 Peak Tracking Total 6 | . 3 1 . 3 6 Tactical Retreats 5 | . 2 . . 2 1 Traps | -11 -10 -10 -10 -9 -8 ------- Run | Scr Mat Min Exi Min Mat Traps Triggered 1 | . 1 . . . . Indirectly . | . . . . . . Trap Hack Attempts . | . . . . . . Triggered . | . . . . . . Disarmed . | . . . . . . Reprogrammed . | . . . . . . Reused . | . . . . . . Traps Extracted . | . . . . . . Installed . | . . . . . . Triggered 1 | . . . . . 1 Most Traps Carried 2 | . . 2 2 2 2 Machines | -11 -10 -10 -10 -9 -8 ---------- Run | Scr Mat Min Exi Min Mat Machines Disabled 2 | . 1 . . . 1 Max in Single Turn 1 | . 1 . . . 1 Machines Sabotaged . | . . . . . . Garrisons Compromised . | . . . . . . Overloaded Fab Kills . | . . . . . . Hacking | -11 -10 -10 -10 -9 -8 --------- Run | Scr Mat Min Exi Min Mat Machines Accessed 3 | . 1 . 1 . 1 Terminals 2 | . 1 . . . 1 Fabricators . | . . . . . . Repair Stations . | . . . . . . Recycling Units . | . . . . . . Scanalyzers . | . . . . . . Garrison Access . | . . . . . . Total Hacks 27 | . 1 . 23 . 3 Successful 25 | . . . 23 . 2 Failed 2 | . 1 . . . 1 Catastrophic 1 | . 1 . . . . Database Lockouts . | . . . . . . Manual 4 | . 1 . . . 3 Terminals 4 | . 1 . . . 3 Fabricators . | . . . . . . Repair Stations . | . . . . . . Recycling Units . | . . . . . . Scanalyzers . | . . . . . . Garrison Access . | . . . . . . Terminal Hacks 23 | . . . 23 . . Record 23 | . . . 23 . . Fabricator Hacks . | . . . . . . Repair Station Hacks . | . . . . . . Recycling Unit Hacks . | . . . . . . Scanalyzer . | . . . . . . Garrison Access Hacks . | . . . . . . Unauthorized Hacks 2 | . . . . . 2 Terminals 2 | . . . . . 2 Botnet 1 | . . . . . 1 Operators 1 | . . . . . 1 Fabricators . | . . . . . . Repair Stations . | . . . . . . Recycling Units . | . . . . . . Scanalyzers . | . . . . . . Garrison Access . | . . . . . . Data Cores Recovered . | . . . . . . Used . | . . . . . . Hacking Detections 2 | . 1 . . . 1 Full Trace Events . | . . . . . . Feedback Events . | . . . . . . Feedback Blocked . | . . . . . . Robot Schematics Acquired . | . . . . . . Robots Built . | . . . . . . Authchips . | . . . . . . Time . | . . . . . . Total Robot Build Rating . | . . . . . . Part Schematics Acquired . | . . . . . . Parts Built . | . . . . . . Authchips . | . . . . . . Time . | . . . . . . Total Part Build Rating . | . . . . . . Parts Repaired . | . . . . . . Time . | . . . . . . Parts Recycled . | . . . . . . Recycled Matter . | . . . . . . Retrieved Matter . | . . . . . . Retrieved Components . | . . . . . . Parts Scanalyzed . | . . . . . . Part Schematics Acquired . | . . . . . . Parts Damaged . | . . . . . . Bothacking | -11 -10 -10 -10 -9 -8 ------------ Run | Scr Mat Min Exi Min Mat Used RIF Installer . | . . . . . . Robots Hacked . | . . . . . . Non-combat . | . . . . . . Combat . | . . . . . . Robot Hacks Applied . | . . . . . . Relay Couplers Released . | . . . . . . Fabnet Peak Effective % . | . . . . . . Robots Rewired . | . . . . . . Allies Hacked . | . . . . . . Hacks Repelled . | . . . . . . Allies | -11 -10 -10 -10 -9 -8 -------- Run | Scr Mat Min Exi Min Mat Total Allies 2 | . . 1 . 1 . Largest Group 1 | . . 1 . 1 1 Highest-Rated Group 31 | . . 31 . 31 31 Highest-Rated Ally 31 | . . 31 . 31 31 Total Orders . | . . . . . . Ally Attacks 17 | . . 4 . . 13 Total Damage 249 | . . 42 . . 207 Kills 4 | . . . . . 4 Allies Corrupted . | . . . . . . Allies Melted . | . . . . . . Intel | -11 -10 -10 -10 -9 -8 ------- Run | Scr Mat Min Exi Min Mat Robot Analysis Total . | . . . . . . Derelict Logs Recovered 3 | . . . . 3 . Drone Launches . | . . . . . . Drone Recoveries . | . . . . . . Exploration | -11 -10 -10 -10 -9 -8 ------------- Run | Scr Mat Min Exi Min Mat Turns Passed 10506 | 59 271 768 344 2192 6872 Spaces Moved 2381 | 64 197 695 280 772 373 Core 23 | 17 . . . . 6 Treads . | . . . . . . Legs 19 | . . . . . 19 Wheels 2339 | 47 197 695 280 772 348 Hover . | . . . . . . Flight . | . . . . . . Fastest Speed 50 | 50 80 80 80 210 230 Average Speed 169 | 72 80 80 120 244 279 Slowest Speed 4250 | 80 80 80 230 395 4250 Overloaded Moves . | . . . . . . Propulsion Burnouts . | . . . . . . Robots Hopped . | . . . . . . Cave-ins Triggered 1 | . . 1 . . . Exploration Rate (%) 52 | 5 31 85 65 99 27 Regions Visited 5 Branch Regions 3 Pre-discovered Areas 2 | . . . 1 1 . Known Exits Taken 1 | . . . . 1 . Unknown Exits Taken 4 | 1 1 1 1 . . Scrap Searched 5 | . . 2 . 3 . Spaces Dug 11 | . . 11 . . . Terrain Destroyed 46 | . . 11 . . 35 Melee . | . . . . . . Projectile 5 | . . 3 . . 2 AOE 41 | . . 8 . . 33 Terrain Rammed . | . . . . . . Walls Destroyed . | . . . . . . Machines Disabled . | . . . . . . Actions | -11 -10 -10 -10 -9 -8 --------- Run | Scr Mat Min Exi Min Mat Total 8643 | 74 273 871 288 990 6147 Wait 5966 | . 29 135 . 112 5690 Move 2376 | 63 196 694 279 771 373 Hop . | . . . . . . Pick Up 51 | 5 10 4 4 14 14 Fast Attach 17 | 3 3 . 2 3 6 Attach 19 | 1 3 4 . 2 9 Detach 4 | . . 1 . 1 2 Swap 12 | . 2 1 . 8 1 Drop 17 | 1 6 2 3 3 2 Fire 163 | 1 24 29 . 65 44 Melee 13 | . . . . 7 6 Ram 5 | . . 1 . 4 . Kick . | . . . . . . Crush . | . . . . . . Escape Stasis . | . . . . . . Rewire . | . . . . . . Trap . | . . . . . . Miscellaneous . | . . . . . . Route ------- -11/Scrapyard -10/Materials -10/Mines (discovered 3 exits: [*Mat x2] / *Exi) -10/Exiles -9/Mines (discovered 2 exits: *Mat x2) -8/Materials History --------- Turn | Location | Event 2 | -11/Scrapyard | Met Revision 17 54 | -11/Scrapyard | Discovered new exit (range 8) 60 | -11/Scrapyard | Entered Materials 176 | -10/Materials | Met 8R-AWN 224 | -10/Materials | Discovered new exit (range 15) 331 | -10/Materials | Entered Mines 334 | -10/Mines | Followed 8R-AWN into the Mines 395 | -10/Mines | Found a hidden stash of uninstalled traps 493 | -10/Mines | Build established: Scavenger-Mutant 495 | -10/Mines | Discovered new exit (range 5) 666 | -10/Mines | Assembled infested the area 749 | -10/Mines | Received a Mining Laser from a helpful Derelict 836 | -10/Mines | Discovered new exit (range 7) 905 | -10/Mines | Discovered new exit (range 7) 1009 | -10/Mines | Crushed by falling debris 1009 | -10/Mines | System corruption reached 10% 1040 | -10/Mines | Lost 3 parts (1p1u1w) 1099 | -10/Mines | Entered Exiles 1121 | -10/Exiles | Welcomed by 8R-AWN 1132 | -10/Exiles | Met EX-HEX 1217 | -10/Exiles | Met EX-DEC 1254 | -10/Exiles | Visited The Gauntlet 1301 | -10/Exiles | Learned location of Zion (-7) 1413 | -10/Exiles | Discovered new exit (range 14) 1443 | -10/Exiles | Entered Mines 1689 | -9/Mines | Build established: Hauler-Mutant 1886 | -9/Mines | Identified exit to Materials 2066 | -9/Mines | Learned Materials stockpile data 2333 | -9/Mines | Found a damaged Exp. Sensor Array with a note attached 2341 | -9/Mines | Found Prototype Device 2471 | -9/Mines | Discovered exit to Materials (range 10) 2481 | -9/Mines | Core integrity fell below 50% 2585 | -9/Mines | Learned Materials security intel 3242 | -9/Mines | Core integrity fell below 20% 3245 | -9/Mines | Escorted by a lone wolf Derelict 3265 | -9/Mines | Learned location of Storage (-7) 3635 | -9/Mines | Entered Materials 3635 | -8/Materials | Accompanied by 1 ally 3635 | -8/Materials | Evolved 4 slots: Utility x4 3635 | -8/Materials | Identified Exp. Sensor Array 3945 | -8/Materials | Build established: Hauler-Assassin 10213 | -8/Materials | System corruption reached 10% 10226 | -8/Materials | Lost 13 parts (2n7u2w) 10335 | -8/Materials | System corruption reached 30% 10472 | -8/Materials | Build established: Hauler-Mutant 10487 | -8/Materials | Core integrity fell below 50% 10507 | -8/Materials | Self-destructed Last Messages --------------- 10486_ Hrd. Light Armor Plating destroyed. 10486_ Rnf. Ion Engine destroyed. 10486_ Destroyed Rnf. Ion Engine. 10487_ W-25 Informer sends out distress signal. 10488_ G-47 Trooper destroyed. 10488_ Grenade Launcher destroyed. 10489_ U-05 Engineer lays Concrete. 10492_ U-05 Engineer builds a Wall. 10493_ Dropped EMP Blaster. 10495_ The unstable cave ceiling collapses. 10495_ K-01 Serf collects debris. 10496_ U-05 Engineer lays Concrete. 10498_ System corrupted: Energy discharge (-2). 10499_ K-01 Serf collects debris. 10499_ U-05 Engineer lays Concrete. 10501_ The unstable cave ceiling collapses. 10501_ Aluminum Leg crushed. 10502_ U-05 Engineer lays Concrete. 10504_ K-01 Serf collects debris. 10504_ U-05 Engineer lays Concrete. Map ----- +----------------------------------------------------+ | ?????????????????????????????????????????????????? | | ?????????????????????????????????????????????????? | | ?????????????????????????????????????????????????? | | ?????????????????????????????????????????????????? | | ?????????????????????????????????????????????????? | | ?????????????????????????????????????????????????? | | ?? ??????????????????????????????????????????????? | | #?##?#?#?????????????????o? ?????????????????????? | | ######?#?#???#????????? ? ? ?????????????????????? | | ###?######?????????????????%?????????????????????? | | ###?#?###?#?#?? ?#????????? ???? ????????????????? | | #?#### ? ? ????????????? ?#?#?????????????????? | | #??### #???? ????????# #???? ???????????????? | | #?####??"" +? ? ????????? ????????????????????? | | #?#?## """ ?? ? ????? ? ??# ? ??#???????????????? | | ###?## "?" # ????#?????# ? ?#????????????????? | | ##?### ? ##?#???###?#?## #???##?##????????????? | | #?###?#######?##?#???????## ##??? #????????????? | | ###??##??####?##?#?#?????## #??? #????????????? | | #??#################?#???##|#?? #????????????? | | #?## ##?#?#?#?#????#!#? !?????????????? | | #### % ###############h## ??????#???????? | | "" # + !% #k ?????????????????? | | "" # ########### = ####+##????????????? | | "" # ######### g ! #? ??????????? | | # ## ## %@% = +????????????? | | # ## """ ## [] u #????????????? | | + ## "T" ##"= g #? ??????????? | | +### ## ##! # #?##?????????? | | ##+######## ##! ===#### #????????????? | | # ! ## %]#???? #????????????? | | + %* ######/#### #????????????? | | # """ #???##k% #????????????? | | # """ #???#[= ! #????????????? | | ############## """ ##?#?#% #????????????? | | ############## #?#??# """ ##???????????? | | # ! ##?#! #????# """ #???????????? | | # ############### """ = #???????????? | | # ##########??### +???????????? | | # ######?#### ? #???????????? | | + """ """ #####?##?#?? ????? ????????????? | | # """ """ ########### #####??????????????????? | | # """ """ # ## #??##??????????????????? | | # # """ ## ## ?????????????????? | | #######+### """ # ##""" ?????????????????? | | ##??# #= """!###### ##"?" ????????????????? | | #?### #% %*=%=#?#### ##""" ????????????????? | | #??## + !""" #? # ## ? ???????????????? | | ###?# # T" # T ?? ##""" o???????????????? | | #??## # """ # ? # ##""" ???????????????? | +----------------------------------------------------+ Best States ------------- Heat Dissipation 49 Energy Generation 14 Energy Capacity 265 Matter Stores 300 Matter Capacity 300 Sight Range 16 Robot Scan Range 20 Terrain Scan Range 16 Terrain Scan Density 10 Additional Mass Support 9 Armor Coverage 150 Evasion (%) 50 Item Schematics ----------------- None Robot Schematics ------------------ None Fabricated ------------ Nothing Alien Tech Used ----------------- None Achievements -------------- Fist Fight Let's See Who's Tougher Packrat Power Corrupts System Compromised Challenges ------------ None Game ------ Seed MachineGlidesysRecalibrator Manual? 0 Play Time 00:52:09 Cumulative 4.4 hours Start 2022.07.13 @ 19:13:25 End 2022.07.13 @ 20:07:22 Sessions 1 Manual Loads 0 Difficulty Rogue Special Mode None Game No. 4 Rogue 4 Adventurer 0 Explorer 0 Win Type - Total 0 Types 0/0/0/0/0/0/0/0/0 Lore% 9 Gallery% 7 Achievement% 12 Wizard Run 0 Options --------- ASCII 0 Keyboard 0 Movement Numpad Keybinds 0 Fullscreen 2 Font 14/Terminus Map View 84x54 Tactical HUD 1 Map Filters NONE Filters NONE Steam 0 RUN: 328931a0-45f5-4513-80b7-2f5966416650